Workbook

Sheet примерное меню для 5-11 классов
B2: Примерное двухнедельное меню для обучающихся в общеобразовательных организациях с 5-11 классы (Горячий завтрак)
A3: Номер рецептуры | B3: Прием пищи | C3: Наименование блюда | D3: Выход,г | E3: Белки,г | F3: Жиры,г | G3: Углеводы,г | H3: Калорийность,ккал | I3: Витамин В1,мг | J3: Витамин С,мг | K3: Витамин А,мг | L3: Витамин Е,мг | M3: Са,мг | N3: Р,мг | O3: Mg,мг | P3: Fe,мг
B4: 1 | C4: 2 | D4: 3 | E4: 4 | F4: 5 | G4: 6 | H4: 7 | I4: 8 | J4: 9 | K4: 10 | L4: 11 | M4: 12 | N4: 13 | O4: 14 | P4: 15
B5: 1-ая неделя
A6: ттк | B6: 1 день | C6: Котлеты (биточки,шницели рубленые из говядины) | D6: 100 | E6: 10.25 | F6: 12.375 | G6: 12.7625 | H6: 188.75 | I6: 0.0625 | J6: 0.0625 | K6: 2.6 | L6: 3.1375 | M6: 34.75 | N6: 140.125 | O6: 27.625 | P6: 1.4375
A7: 180/2016 сб дошк | C7: Каша перловая рассыпчатая с овощами с маслом | D7: 180/5 | E7: 5.12 | F7: 3.78 | G7: 35.42 | H7: 196.2 | I7: 0.06 | J7: 0.72 | K7: 20 | L7: 0.73 | M7: 28.44 | N7: 180.42 | O7: 29.64 | P7: 1.12
C8: Зеленый горошек (доп.гарнир) | D8: 40 | E8: 1.19 | F8: 2.08 | G8: 2.5 | H8: 33.44 | I8: 0.04 | J8: 4.4 | L8: 0.96 | M8: 8.58 | N8: 23.98 | O8: 8.32 | P8: 0.27
A9: 693/2004,сб шк | C9: Какао с молоком | D9: 200 | E9: 3.78 | F9: 0.67 | G9: 21 | H9: 105 | I9: 0.2 | J9: 1.33 | K9: 0 | L9: 0 | M9: 133.33 | N9: 111.11 | O9: 25.56 | P9: 2
C10: Хлеб сельский 1 сорт | D10: 20 | E10: 1.3 | F10: 0.2 | G10: 7 | H10: 35 | I10: 0.02 | J10: 0 | K10: 0 | L10: 0.2 | M10: 4.7 | N10: 21.1 | O10: 6.3 | P10: 0.52
C11: Хлеб белый 1 сорт | D11: 30 | E11: 2.28 | F11: 0.24 | G11: 14.76 | H11: 71 | I11: 0.033 | J11: 0 | K11: 0 | L11: 0.33 | M11: 6 | N11: 19.5 | O11: 4.2 | P11: 0.33
C12: итого: | E12: =E6+E7+E8+E9+E10+E11 -> 23.92 | F12: 19.345 | G12: 93.4425 | H12: 629.39 | I12: 0.4155 | J12: 6.5125 | K12: 22.6 | L12: 5.3575 | M12: 215.8 | N12: 496.235 | O12: 101.645 | P12: 5.6775
A14: 36/2016 дели | B14: 2 день | C14: Салат из свеклы отварной с яблоками | D14: 100 | E14: 1.11 | F14: 5.17 | G14: 1.14 | H14: 96.7 | I14: 0.02 | J14: 9.3 | K14: 0 | L14: 2.32 | M14: 29.04 | N14: 3.18 | O14: 17.08 | P14: 1.52
A15: ттк,2019 | C15: Жаркое из птицы | D15: 50/180 | E15: 13.3 | F15: 17 | G15: 28.45 | H15: 320 | I15: 0.222 | J15: 27.825 | K15: 28.5 | L15: 2.174 | M15: 35.535 | N15: 197.84 | O15: 47.778 | P15: 2.26
A16: 692/2004 | C16: Кофейный напиток с молоком | D16: 200 | E16: 2.5 | F16: 1.8 | G16: 20.5 | H16: 108 | I16: 0 | J16: 0.26 | K16: 0.05 | L16: 0 | M16: 53.33 | N16: 39.15 | O16: 6.09 | P16: 0.1
C17: Хлеб сельский 1 сорт | D17: 20 | E17: 1.3 | F17: 0.2 | G17: 7 | H17: 35 | I17: 0.02 | J17: 0 | K17: 0 | L17: 0.2 | M17: 4.7 | N17: 21.1 | O17: 6.3 | P17: 0.52
C18: Хлеб белый 1 сорт | D18: 30 | E18: 2.28 | F18: 0.24 | G18: 14.76 | H18: 71 | I18: 0.033 | J18: 0 | K18: 0 | L18: 0.33 | M18: 6 | N18: 19.5 | O18: 4.2 | P18: 0.33
C19: итого: | E19: =E14+E15+E16+E17+E18 -> 20.49 | F19: =F14+F15+F16+F17+F18 -> 24.41 | G19: 71.85 | H19: 630.7 | I19: 0.295 | J19: 37.385 | K19: 28.55 | L19: 5.024 | M19: 128.605 | N19: 280.77 | O19: 81.448 | P19: 4.73
A21: 43/2004 сб шк | B21: 3 день | C21: Салат из белокочанной капусты | D21: 100 | E21: 1.55 | F21: 5.09 | G21: 9.4 | H21: 90 | I21: 0.03 | J21: 36.14 | K21: 0 | L21: 2.32 | M21: 42.71 | N21: 30.52 | O21: 16.58 | P21: 0.575
A22: 437/2004 сбшк | C22: Гуляш из говядины | D22: 50/50 | E22: 9.1 | F22: 12.4 | G22: 10.5 | H22: 190 | I22: 0.03 | J22: 2.44 | K22: 0 | L22: 0.41 | M22: 7.6 | N22: 128.9 | O22: 17.5 | P22: 1.9
A23: 332/сб шк | C23: Макароны отварные | D23: 180 | E23: 6.78 | F23: 5.36 | G23: 33.60 | H23: 210.00 | I23: 0.100 | J23: 0 | K23: 25.20 | L23: 0.980 | M23: 19.76 | N23: 56.48 | O23: 10.19 | P23: 1.04
A24: 685/2004сбшк | C24: Чай с сахаром | D24: 200/15 | E24: 0.2 | G24: 13.7 | H24: 56 | I24: 0.008 | J24: 3.75 | K24: 0 | L24: 0.075 | M24: 9.97 | N24: 7.5 | O24: 6.5 | P24: 0.197
C25: Хлеб сельский 1 сорт | D25: 20 | E25: 1.3 | F25: 0.2 | G25: 7 | H25: 35 | I25: 0.02 | J25: 0 | K25: 0 | L25: 0.2 | M25: 4.7 | N25: 21.1 | O25: 6.3 | P25: 0.52
C26: Хлеб белый 1 сорт | D26: 30 | E26: 2.28 | F26: 0.24 | G26: 14.76 | H26: 71 | I26: 0.033 | J26: 0 | K26: 0 | L26: 0.33 | M26: 6 | N26: 19.5 | O26: 4.2 | P26: 0.33
C27: итого: | E27: =E21+E22+E23+E24+E25+E26 -> 21.21 | F27: =F21+F22+F23+F24+F25+F26 -> 23.29 | G27: 88.96 | H27: 652.00 | I27: 0.22 | J27: 42.33 | K27: 25.20 | L27: 4.32 | M27: 90.74 | N27: 264.00 | O27: 61.27 | P27: 4.56
A29: ттк | B29: 4 день | C29: Салат из моркови | D29: 100 | E29: 1.05 | F29: 10.07 | G29: 7.24 | H29: 123.33 | I29: 0.05 | J29: 4.05 | K29: 0.00 | L29: 4.72 | M29: 22.17 | N29: 44.75 | O29: 30.78 | P29: 0.60
A30: 234/2015 дели | C30: Котлеты рыбные | D30: 100 | E30: 10.25 | F30: 10.125 | G30: 8.75 | H30: 167.5 | I30: 0.1 | J30: 0.16 | K30: 10 | L30: 5 | M30: 41.6 | N30: 150.12 | O30: 28.3 | P30: 1.12
A31: 520/сб шк | C31: Пюре картофельное | D31: 180 | E31: 3.94 | F31: 5.59 | G31: 26.43 | H31: 171.60 | I31: 0.20 | J31: 31.13 | K31: 30.60 | L31: 0.22 | M31: 55.93 | N31: 116.80 | O31: 39.57 | P31: 1.48
A32: 693/2004 сб шк | C32: Какао с молоком | D32: 200 | E32: 3.78 | F32: 0.67 | G32: 21 | H32: 105 | I32: 0.2 | J32: 1.33 | K32: 0 | L32: 0 | M32: 133.33 | N32: 111.11 | O32: 25.56 | P32: 2
C33: Хлеб сельский 1 сорт | D33: 20 | E33: 1.3 | F33: 0.2 | G33: 7 | H33: 35 | I33: 0.02 | J33: 0 | K33: 0 | L33: 0.2 | M33: 4.7 | N33: 21.1 | O33: 6.3 | P33: 0.52
C34: Хлеб белый 1 сорт | D34: 30 | E34: 2.28 | F34: 0.24 | G34: 14.76 | H34: 71 | I34: 0.033 | J34: 0 | K34: 0 | L34: 0.33 | M34: 6 | N34: 19.5 | O34: 4.2 | P34: 0.33
C35: итого: | E35: =E29+E30+E31+E32+E33+E34 -> 22.60 | F35: =F29+F30+F31+F32+F33+F34 -> 26.90 | G35: 85.18 | H35: 673.43 | I35: 0.60 | J35: 36.67 | K35: 40.60 | L35: 10.47 | M35: 263.73 | N35: 463.38 | O35: 134.71 | P35: 6.04
A37: 71/2015 дели | B37: 5 день | C37: Салат из морской капусты с морковью и кукурузой к/с | D37: 100 | E37: 1.87 | F37: 5.3 | G37: 10.83 | H37: 98.4 | I37: 0.03 | J37: 12 | K37: 0 | L37: 0 | M37: 50.76 | N37: 33.43 | O37: 18.15 | P37: 0.87
A38: ттк | C38: Котлеты рубленые из птицы | D38: 100 | E38: 13.75 | F38: 16.88 | G38: 5.98 | H38: 231.25 | I38: 0.11 | J38: 2.36 | K38: 47.23 | L38: 5.53 | M38: 24.46 | N38: 193.27 | O38: 23.37 | P38: 1.63
A39: 511/2004 сб шк | C39: Рис отварной | D39: 180 | E39: 4.40 | F39: 5.88 | G39: 33.96 | H39: 206.40 | I39: 0.05 | J39: 0.00 | K39: 47.88 | L39: 0.32 | M39: 5.94 | N39: 98.82 | O39: 32.40 | P39: 0.65
A40: 686/2004 сб шк | C40: Чай с сахароми лимоним | D40: 200/15/7 | E40: 0.2 | F40: 0.1 | G40: 13.9 | H40: 57 | I40: 0 | J40: 1.12 | K40: 0 | L40: 0.01 | M40: 2.86 | N40: 1.34 | O40: 0.73 | P40: 0.08
C41: Хлеб сельский 1 сорт | D41: 20 | E41: 1.3 | F41: 0.2 | G41: 7 | H41: 35 | I41: 0.02 | J41: 0 | K41: 0 | L41: 0.2 | M41: 4.7 | N41: 21.1 | O41: 6.3 | P41: 0.52
C42: Хлеб белый 1 сорт | D42: 30 | E42: 2.28 | F42: 0.24 | G42: 14.76 | H42: 71 | I42: 0.033 | J42: 0 | K42: 0 | L42: 0.33 | M42: 6 | N42: 19.5 | O42: 4.2 | P42: 0.33
C43: итого: | E43: =E37+E38+E39+E40+E41+E42 -> 23.80 | F43: =F37+F38+F39+F40+F41+F42 -> 28.60 | G43: 86.43 | H43: 699.05 | I43: 0.25 | J43: 15.48 | K43: 95.11 | L43: 6.40 | M43: 94.72 | N43: 367.46 | O43: 85.15 | P43: =P37+P38+P39+P40+P41+P42 -> 4.08
A45: 243/2015дели | B45: 6 день | C45: Сосиски отварные | D45: 100 | E45: 12.0 | F45: 7.6 | G45: 16 | H45: 180 | I45: 0.3 | J45: 0 | K45: 0 | L45: 0.5 | M45: 33.4 | N45: 182.8 | O45: 19.78 | P45: 2.4
A46: 332/сб шк | C46: Макароны отварные | D46: 180 | E46: 6.78 | F46: 5.36 | G46: 33.60 | H46: 210.00 | I46: 0.100 | J46: 0 | K46: 25.20 | L46: 0.980 | M46: 19.76 | N46: 56.48 | O46: 10.19 | P46: 1.04
A47: /сб шк | C47: Огурцы свежие порционно (доп.гарнир) | D47: 30 | E47: 0.21 | F47: 0.03 | G47: 0.57 | H47: 3.60 | I47: 0.010 | J47: 1.47 | K47: 0 | L47: 0.030 | M47: 5.1 | N47: 9 | O47: 4.2 | P47: 0.15
A48: 685/2004 сб шк | C48: Чай с сахаром | D48: 200/15 | E48: 0.2 | F48: 0 | G48: 13.7 | H48: 56 | I48: 0.008 | J48: 3.75 | K48: 0 | L48: 0.075 | M48: 9.97 | N48: 7.5 | O48: 6.5 | P48: 0.197
C49: Хлеб сельский 1 сорт | D49: 20 | E49: 1.3 | F49: 0.2 | G49: 7 | H49: 35 | I49: 0.2 | J49: 0 | K49: 0 | L49: 0.2 | M49: 4.7 | N49: 21.1 | O49: 6.3 | P49: 0.52
C50: Хлеб белый 1 сорт | D50: 30 | E50: 2.28 | F50: 0.24 | G50: 14.76 | H50: 71 | I50: 0.033 | J50: 0 | K50: 0 | L50: 0.33 | M50: 6 | N50: 19.5 | O50: 4.2 | P50: 0.33
C51: Итого: | E51: =E45+E46+E47+E48+E49+E50 -> 22.77 | F51: =F45+F46+F47+F48+F49+F50 -> 13.43 | G51: 85.63 | H51: 555.60 | I51: 0.65 | J51: 5.22 | K51: 25.20 | L51: 2.12 | M51: 78.93 | N51: 296.38 | O51: 51.17 | P51: 4.64
B53: Примерное двухнедельное меню для обучающихся в общеобразовательных организациях с 5-11 классы (Горячий завтрак)
A55: Номер рецептуры | B55: Прием пищи | C55: Наименование блюда | D55: Выход,г | E55: Белки,г | F55: Жиры,г | G55: Углеводы,г | H55: Калорийность,ккал | I55: Витамин В1,мг | J55: Витамин С,мг | K55: Витамин А,мг | L55: Витамин Е,мг | M55: Са,мг | N55: Р,мг | O55: Mg,мг | P55: Fe,мг
A56: 29/2017 дели | B56: 2 неделя | C56: Салат из сырых овощей | D56: 100 | E56: 1.09 | F56: 6.04 | G56: 3.78 | H56: 73.9 | I56: 0.03 | J56: 13.21 | K56: 0 | L56: 0.03 | M56: 25.43 | N56: 35.63 | O56: 18.84 | P56: 0.66
A57: 433/204 сб шк | B57: 1 день | C57: Говядина тушеная | D57: 60/50 | E57: 7.49 | F57: 13.22 | G57: 4.44 | H57: 166.98 | I57: 0.073 | J57: 1.63 | K57: 8.32 | L57: 3.70 | M57: 17.71 | N57: 200.2 | O57: 27.95 | P57: 2.93
A58: 508/2004 сб шк | C58: Каша гречневая рассыпчатая | D58: 180 | E58: 4.32 | F58: 8.40 | G58: 34.80 | H58: 231.60 | I58: 0.35 | J58: 0.00 | K58: 25.20 | L58: 0.56 | M58: 24.76 | N58: 213.51 | O58: 125.06 | P58: 4.14
A59: 693/2004 сб шк | C59: Какао с молоком | D59: 200 | E59: 3.78 | F59: 0.67 | G59: 21 | H59: 105 | I59: 0.2 | J59: 1.33 | K59: 0 | L59: 0 | M59: 133.33 | N59: 111.11 | O59: 25.56 | P59: 2 | Q59: 2
C60: Хлеб белый 1 сорт | D60: 30 | E60: 2.28 | F60: 0.24 | G60: 14.76 | H60: 71 | I60: 0.033 | J60: 0 | K60: 0 | L60: 0.33 | M60: 6 | N60: 19.5 | O60: 4.2 | P60: 0.33
C61: Хлеб сельский 1 сорт | D61: 20 | E61: 1.3 | F61: 0.2 | G61: 7 | H61: 35 | I61: 0.02 | J61: 0 | K61: 0 | L61: 0.2 | M61: 4.7 | N61: 21.1 | O61: 6.3 | P61: 0.52
C62: итого: | E62: =E56+E57+E58+E59+E60+E61 -> 20.26 | F62: =F56+F57+F58+F59+F60+F61 -> 28.77 | G62: 85.78 | H62: 683.48 | I62: 0.71 | J62: 16.17 | K62: 33.52 | L62: 4.82 | M62: 211.93 | N62: 601.05 | O62: 207.91 | P62: 10.58
A64: 71/2015дели | B64: 2 день | C64: Винегрет | D64: 100 | E64: 1.4 | F64: 10.04 | G64: 7.29 | H64: 125.1 | I64: 0.04 | J64: 9.63 | K64: 0 | L64: 0.04 | M64: 31.24 | N64: 43.27 | O64: 19.53 | P64: 0.83
A65: 291/2015 дели | C65: Плов с курицей | D65: 50/180 | E65: 14 | F65: 19.5 | G65: 42 | H65: 400 | I65: 0.064 | J65: 0.62 | K65: 34.27 | L65: 5.799 | M65: 22 | N65: 204 | O65: 40.6 | P65: 1.87
A66: 686/2004 сб шк | C66: Чай с сахаром и лимоном | D66: 200/15/7 | E66: 0.2 | F66: 0.1 | G66: 13.9 | H66: 57 | I66: 0 | J66: 1.12 | K66: 0 | L66: 0.01 | M66: 2.86 | N66: 1.34 | O66: 0.73 | P66: 0.08
C67: Хлеб белый 1 сорт | D67: 30 | E67: 2.28 | F67: 0.24 | G67: 14.76 | H67: 71 | I67: 0.033 | J67: 0 | K67: 0 | L67: 0.33 | M67: 6 | N67: 19.5 | O67: 4.2 | P67: 0.33
C68: Хлеб сельский 1 сорт | D68: 20 | E68: 1.3 | F68: 0.2 | G68: 7 | H68: 35 | I68: 0.02 | J68: 0 | K68: 0 | L68: 0.2 | M68: 4.7 | N68: 21.1 | O68: 6.3 | P68: 0.52
C69: итого: | E69: =E64+E65+E66+E67+E68 -> 19.18 | F69: =F64+F65+F66+F67+F68 -> 30.08 | G69: 84.95 | H69: 688.1 | I69: 0.157 | J69: 11.37 | K69: 34.27 | L69: 6.379 | M69: 66.8 | N69: 289.21 | O69: 71.36 | P69: 3.63
A71: 43/2004 сб шк | B71: 3 день | C71: Салат из белокочанной капусты | D71: 100 | E71: 1.55 | F71: 5.09 | G71: 9.4 | H71: 90 | I71: 0.03 | J71: 36.14 | K71: 0 | L71: 2.32 | M71: 42.71 | N71: 30.52 | O71: 16.58 | P71: 0.575
A72: 234/2015дели | C72: Котлеты рыбные | D72: 100 | E72: 10.25 | F72: 10.125 | G72: 8.75 | H72: 167.5 | I72: 0.1 | J72: 0.16 | K72: 10 | L72: 5 | M72: 41.6 | N72: 150.12 | O72: 28.3 | P72: 1.12
A73: 312/2015дели | C73: Пюре картофельное | D73: 180 | E73: 3.94 | F73: 5.59 | G73: 26.43 | H73: 171.60 | I73: 0.20 | J73: 31.13 | K73: 30.60 | L73: 0.22 | M73: 55.93 | N73: 116.80 | O73: 39.57 | P73: 1.48
A74: 685/2004 сб шк | C74: Чай с сахаром | D74: 200/15 | E74: 0.5 | F74: 0 | G74: 13.7 | H74: 56 | I74: 0.008 | J74: 3.75 | K74: 0 | L74: 0.075 | M74: 9.97 | N74: 7.5 | O74: 6.5 | P74: 0.197
C75: Хлеб белый 1 сорт | D75: 30 | E75: 2.28 | F75: 0.24 | G75: 14.76 | H75: 71 | I75: 0.033 | J75: 0 | K75: 0 | L75: 0.33 | M75: 6 | N75: 19.5 | O75: 4.2 | P75: 0.33
C76: Хлеб сельский 1 сорт | D76: 20 | E76: 1.3 | F76: 0.2 | G76: 7 | H76: 35 | I76: 0.02 | J76: 0 | K76: 0 | L76: 0.2 | M76: 4.7 | N76: 21.1 | O76: 6.3 | P76: 0.52
C77: Итого: | E77: =E71+E72+E73+E74+E75+E76 -> 19.82 | F77: =F71+F72+F73+F74+F75+F76 -> 21.24 | G77: 80.04 | H77: 591.10 | I77: 0.39 | J77: 71.18 | K77: 40.60 | L77: 8.14 | M77: 160.91 | N77: 345.54 | O77: 101.45 | P77: 4.22
A79: ттк/2012 | B79: 4 день | C79: Салат из моркови | D79: 100 | E79: 1.05 | F79: 10.07 | G79: 7.24 | H79: 123.33 | I79: 0.05 | J79: 4.05 | K79: 0.00 | L79: 4.72 | M79: 22.17 | N79: 44.75 | O79: 30.78 | P79: 0.60
A80: ттк/2019 | C80: Птица запеченая | D80: 120 | E80: 6.7 | F80: 7.1 | G80: 4 | H80: 107 | I80: 0.113 | J80: 3.75 | K80: 48 | L80: 0.83 | M80: 21.08 | N80: 194.81 | O80: 24.52 | P80: 1.658
A81: 202/2015дели | C81: Макароны отварные | D81: 180 | E81: 6.78 | F81: 5.36 | G81: 33.60 | H81: 210.00 | I81: 0.100 | J81: 0 | K81: 25.20 | L81: 0.980 | M81: 19.76 | N81: 56.48 | O81: 10.19 | P81: 1.04
A82: 692/2004 | C82: Кофейный напиток с молоком | D82: 200 | E82: 2.5 | F82: 1.8 | G82: 20.5 | H82: 108 | I82: 0 | J82: 0.26 | K82: 0.05 | L82: 0 | M82: 53.33 | N82: 39.15 | O82: 6.09 | P82: 0.1
C83: Хлеб белый 1 сорт | D83: 30 | E83: 2.28 | F83: 0.24 | G83: 14.76 | H83: 71 | I83: 0.033 | J83: 0 | K83: 0 | L83: 0.33 | M83: 6 | N83: 19.5 | O83: 4.2 | P83: 0.33
C84: Хлеб сельский 1 сорт | D84: 20 | E84: 1.3 | F84: 0.2 | G84: 7 | H84: 35 | I84: 0.02 | J84: 0 | K84: 0 | L84: 0.20 | M84: 4.7 | N84: 21.1 | O84: 6.3 | P84: 0.52
C85: итого: | E85: =E79+E80+E81+E82+E83+E84 -> 20.61 | F85: =F79+F80+F81+F82+F83+F84 -> 24.77 | G85: 87.10 | H85: 654.33 | I85: 0.31 | J85: 8.06 | K85: 73.25 | L85: 7.06 | M85: 127.04 | N85: 375.79 | O85: 82.08 | P85: 4.24
A87: таб 24/1996сб | B87: 5 день | C87: Свекла отварная(дольками)с маслом | D87: 100 | E87: 1.41 | F87: 6.01 | G87: 8.26 | H87: 92.8 | I87: 0.02 | J87: 6.65 | K87: 0 | L87: 2.7 | M87: 35.46 | N87: 40.63 | O87: 20.7 | P87: 1.32
A88: 478/2004сб шк | C88: Запеканка картофельная с мясом и маслом | D88: 240/5 | E88: 12.6 | F88: 13 | G88: 9.2 | H88: 204 | I88: 0.213 | J88: 35.556 | K88: 20 | L88: 5.026 | M88: 27.951 | N88: 109.806 | O88: 41.551 | P88: 1.7
A89: 686/2204 сб шк | C89: Чай с сахаром и лимоном | D89: 200/15/7 | E89: 0.2 | F89: 0.1 | G89: 13.9 | H89: 57 | I89: 0 | J89: 1.12 | K89: 0 | L89: 0.01 | M89: 2.86 | N89: 1.34 | O89: 0.73 | P89: 0.08
C90: Хлеб белый 1 сорт | D90: 30 | E90: 2.3 | F90: 0.24 | G90: 14.76 | H90: 71 | I90: 0.033 | J90: 0 | K90: 0 | L90: 0.33 | M90: 6 | N90: 19.5 | O90: 4.2 | P90: 0.33
C91: Хлеб сельский 1 сорт | D91: 20 | E91: 1.3 | F91: 0.2 | G91: 7 | H91: 35 | I91: 0.02 | J91: 0 | K91: 0 | L91: 0.2 | M91: 4.7 | N91: 21.1 | O91: 6.3 | P91: 0.52
C92: итого: | E92: =E87+E88+E89+E90+E91 -> 17.79 | F92: =F87+F88+F89+F90+F91 -> 19.55 | G92: 53.12 | H92: 459.80 | I92: 0.29 | J92: 43.33 | K92: 20.00 | L92: 8.27 | M92: 76.97 | N92: 192.38 | O92: 73.48 | P92: 3.95
A94: 20/2015 | B94: 6 день | C94: Салат "Витаминный" | D94: 100 | E94: 0.120 | F94: 5.100 | G94: 11.17 | H94: 90.1 | I94: 0.03 | J94: 16.86 | K94: 0 | L94: 0.2 | M94: 33.48 | N94: 29.35 | O94: 16 | P94: 0.98
A95: 243/2015дели | C95: Сосиски отварные | D95: 100 | E95: 12.0 | F95: 7.6 | G95: 16 | H95: 180 | I95: 0.3 | J95: 0 | K95: 0 | L95: 0.5 | M95: 33.4 | N95: 182.8 | O95: 19.78 | P95: 2.4
A96: 511/2004 сб шк | C96: Рис отварной | D96: 180 | E96: 4.40 | F96: 5.88 | G96: 33.96 | H96: 206.40 | I96: 0.05 | J96: 0.00 | K96: 47.88 | L96: 0.32 | M96: 5.94 | N96: 98.82 | O96: 32.40 | P96: 0.65
A97: 685/2004 сб шк | C97: Чай с сахаром | D97: 200/15 | E97: 0.2 | F97: 0 | G97: 13.7 | H97: 56 | I97: 0.008 | J97: 3.75 | K97: 0 | L97: 0.075 | M97: 9.97 | N97: 7.5 | O97: 6.5 | P97: 0.197
C98: Хлеб белый 1 сорт | D98: 30 | E98: 2.28 | F98: 0.24 | G98: 14.76 | H98: 71 | I98: 0.033 | J98: 0 | K98: 0 | L98: 0.33 | M98: 6 | N98: 19.5 | O98: 4.2 | P98: 0.33
C99: Хлеб сельский 1 сорт | D99: 20 | E99: 1.3 | F99: 0.2 | G99: 7 | H99: 35 | I99: 0.02 | J99: 0 | K99: 0 | L99: 0.2 | M99: 4.7 | N99: 21.1 | O99: 6.3 | P99: 0.52
C100: итого: | E100: =E94+E95+E96+E97+E98+E99 -> 20.30 | F100: =F94+F95+F96+F97+F98+F99 -> 19.02 | G100: 96.59 | H100: 638.50 | I100: 0.45 | J100: 20.61 | K100: 47.88 | L100: 1.63 | M100: 93.49 | N100: 359.07 | O100: 85.18 | P100: 5.08
